Cogmind - Beta 12 @@@ ROGUE MODE // 2023.03.12 @ 05:02:29 Player: Red Box Result: Destroyed by NK-0LA with NK-0LA's Tesla Doomcannon Performance ------------- Evolutions (1) 500 Regions Visited (6) 1200 Robots Destroyed (78) 390 Value Destroyed (1716) 1716 Prototype IDs (42) 840 Alien Tech Used (0) 0 Bonus (205) 205 TOTAL SCORE: 4851 Bonus ------- High Alert Combat Kills 11 Aligned with FarCom 300 Friendly Fire -106 Cogmind --------- Core Integrity 0/400 Matter 300/300 Energy 275/275 System Corruption 1% Temperature Cool (9) Movement Rolling (120) Ox2 Location -8/Mines Parts ------- > --- POWER (1) -------- Deuterium Engine > --- PROPULSION (2) --- Armored Wheel Armored Wheel > --- UTILITY (4) ------ Improved Heat Sink High-capacity Storage Unit Improved Target Analyzer Advanced Weapon Cycler > --- WEAPON (2) ------- Improved Light Cannon Improved Light Cannon > --- INVENTORY (20) --- Cold Fusion Reactor Advanced Myomer Leg Armored Wheel Armored Huge Wheel High-capacity Matter Pod (200) Experimental Sensor Array Experimental Targeting Computer Authchip [Device] Advanced Component Analysis Suite Improved System Guard System Purifier Plasma Cannon Minigun Minigun 8R-AWN's Boregun Shock Bomb Launcher Mini Grenade Launcher Powered Hammer Deploy-a-Sentry Peak State ------------ > --- POWER ------------ Deuterium Engine > --- PROPULSION ------- Armored Wheel Armored Wheel > --- UTILITY ---------- Improved Heat Sink Humpback Hardened Light Armor Plating > --- WEAPON ----------- Guided Plasma Cannon Katana > --- INVENTORY -------- Deuterium Engine Cold Fusion Reactor Advanced Myomer Leg Armored Wheel Armored Wheel Armored Wheel Armored Huge Wheel Improved Heat Sink High-capacity Storage Unit Humpback High-capacity Matter Pod High-capacity Matter Pod Experimental Targeting Computer Advanced Launcher Guidance Computer Advanced Weapon Cycler Advanced Component Analysis Suite Improved System Guard System Purifier Plasma Cannon Minigun Minigun 8R-AWN's Boregun Improved Light Cannon Improved Light Cannon Shock Bomb Launcher Mini Grenade Launcher Powered Hammer Makeshift Sword Longsword +1 Deploy-a-Sentry [Rating: 38] Favorites ----------- Power Deuterium Engine Engine Deuterium Engine Propulsion Armored Wheel Treads Light Treads Leg Aluminum Leg Wheel Armored Wheel Utility High-capacity Storage Unit Device Improved Heat Sink Storage High-capacity Storage Unit Processor Targeting Computer Hackware Hacking Suite Protection Light Armor Plating Weapon Improved Light Cannon Energy Gun Improved Medium Laser Energy Cannon Guided Plasma Cannon Ballistic Gun Autogun Ballistic Cannon Improved Light Cannon Launcher Shock Bomb Launcher Special Weapon Mining Laser Slashing Weapon Katana Special Melee Weapon Datajack Build | -11 -10 -10 -9 -9 -9 -8 ------- Run | Jun Mat Min Mat Min Exi Min Slots Evolved 2 | . . . 2 . . . Power . | . . . . . . . Propulsion . | . . . . . . . Utility 2 | . . . 2 . . . Weapon . | . . . . . . . Parts Attached 94 | 11 17 5 33 6 22 . Power 9 | 1 2 1 4 . 1 . Engine 9 | 1 2 1 4 . 1 . Core . | . . . . . . . Reactor . | . . . . . . . Propulsion 21 | 6 4 3 5 1 2 . Treads 1 | . . . 1 . . . Leg 2 | 2 . . . . . . Wheel 18 | 4 4 3 4 1 2 . Hover . | . . . . . . . Flight . | . . . . . . . Utility 29 | 2 3 1 12 1 10 . Device 12 | 1 1 . 5 . 5 . Storage 7 | 1 2 . 1 . 3 . Processor 3 | . . . 2 . 1 . Hackware 1 | . . . 1 . . . Protection 6 | . . 1 3 1 1 . Artifact . | . . . . . . . Weapon 35 | 2 8 . 12 4 9 . Energy Gun 10 | 2 2 . 5 1 . . Energy Cannon 1 | . . . . . 1 . Ballistic Gun 8 | . 4 . 4 . . . Ballistic Cannon 6 | . . . . 2 4 . Launcher 1 | . . . . . 1 . Special Weapon 2 | . 2 . . . . . Impact Weapon . | . . . . . . . Slashing Weapon 2 | . . . . . 2 . Piercing Weapon . | . . . . . . . Special Melee Weapon 5 | . . . 3 1 1 . Unidentified Prototypes 1 | . . . 1 . . . Parts Lost 12 | . 4 1 6 . 1 . Power 2 | . 1 . 1 . . . Propulsion 3 | . 1 . 2 . . . Utility 5 | . 1 1 2 . 1 . Weapon 2 | . 1 . 1 . . . Highest Loss Streak 2 | . 2 1 2 . 1 . To Critical Strikes . | . . . . . . . Average Slot Usage (%) 96 | . 96 99 99 100 91 . Engine 11 | . 13 14 10 11 11 . Wheel 22 | . 25 27 20 22 22 . Device 13 | . 13 1 11 22 16 . Storage 11 | . 14 14 11 11 11 . Processor 1 | . . . 3 . 1 . Hackware 3 | . . . 9 . . . Protection 7 | . . 12 7 11 9 . Energy Gun 7 | . 14 . 10 13 . . Ballistic Gun 8 | . 12 28 10 . . . Ballistic Cannon 4 | . . . . 7 13 . Slashing Weapon 1 | . . . . . 4 . Naked Turns . | . . . . . . . Heaviest Build 262 | 15 30 32 61 65 262 59 Greatest Support 32 | 20 32 32 28 28 24 24 Greatest Overweight (x) 10 | 1 2 3 5 2 10 2 Average Overweight (x) 2 | . . . 2 2 3 2 Largest Inventory Capacity 35 | 8 15 15 20 20 35 20 Average Capacity 19 | 7 12 15 19 20 25 20 Most Carried 32 | 8 15 15 20 20 32 20 Average Carried 17 | 6 11 14 19 19 19 20 Final Capacity 20 | 8 15 15 20 20 20 20 Final Carried 20 | 8 15 15 20 20 20 20 Class Distribution -------------------- 56% | Mutant 24% | Scavenger-Mutant 10% | Hauler-Mutant 8% | Trapper-Mutant Dominant Class ---------------- Mutant | -10/Materials Mutant | -10/Mines Mutant | -9/Materials Mutant | -9/Mines Mutant | -9/Exiles Mutant | -8/Mines Resources | -11 -10 -10 -9 -9 -9 -8 ----------- Run | Jun Mat Min Mat Min Exi Min Matter Collected 2258 | 304 245 228 1057 60 364 . Remotely . | . . . . . . . Salvage Created 2589 | 165 420 250 1327 83 344 . Parts 206 | 19 27 24 91 . 45 . Haulers Intercepted 4 | . 1 . 3 . . . Recyclers Shooed 1 | . . 1 . . . . Parts Field Recycled . | . . . . . . . Retrieved Matter . | . . . . . . . Parts Self-Destructed . | . . . . . . . Prevented . | . . . . . . . Kills | -11 -10 -10 -9 -9 -9 -8 ------- Run | Jun Mat Min Mat Min Exi Min Combat Hostiles Destroyed 58 | . 9 11 29 7 2 . Melee 1 | . . . . . 1 . Guns 54 | . 7 11 29 7 . . Cannons 1 | . . . . . 1 . AOE 1 | . 1 . . . . . Classes Destroyed 12 | 2 5 1 2 1 1 . Worker 1 | . 1 . . . . . Tunneler 6 | 6 . . . . . . Hauler 4 | . 1 . 3 . . . Recycler 1 | 1 . . . . . . Operator 2 | . . 1 1 . . . Watcher 8 | . 3 . 5 . . . Swarmer 16 | . 3 9 4 . . . Grunt 24 | . 6 2 16 . . . Duelist 1 | . . . 1 . . . Sentry 8 | . . . 8 . . . Zionite 3 | . . . . . 3 . Assembled 8 | . . . . 7 1 . Best Kill Streak 7 | 4 4 3 7 3 3 . Combat Bots Only 7 | . 4 3 7 3 1 . Max Kills in Single Turn 2 | 1 1 1 2 1 1 . Gunslinging 1 | . . . 1 . . . Exploded 1 | . 1 . . . . . Melee 1 | . . . . . 1 . Uniques/NPCs Destroyed 4 | . . . . . 4 . 8R-AWN (-9/Exiles) EX-HEX (-9/Exiles) EX-BIN (-9/Exiles) EX-DEC (-9/Exiles) Combat | -11 -10 -10 -9 -9 -9 -8 -------- Run | Jun Mat Min Mat Min Exi Min Damage Taken 2681 | . 524 288 768 325 736 40 Core 558 | . 70 78 231 34 120 25 Absorbed by Shields 173 | . . . . 125 48 . Regen/Repaired (Parts) 36 | . . . 36 . . . Core Remaining (%) 70 | 100 . 40 . . . . Volleys Fired 244 | 15 47 24 91 29 38 . Largest 2 | 2 2 2 2 2 2 . Hottest 120 | 100 100 46 112 112 120 . Shots Fired 464 | 30 92 48 180 58 56 . Gun 406 | 30 90 48 180 58 . . Cannon 55 | . . . . . 55 . Launcher 1 | . . . . . 1 . Special 2 | . 2 . . . . . Kinetic 218 | . 24 48 110 . 36 . Thermal 234 | 30 57 . 70 58 19 . Explosive . | . . . . . . . Electromagnetic 12 | . 11 . . . 1 . Robot Hit Streak 17 | 7 8 7 17 5 7 . Robot Miss Streak 6 | 2 4 5 5 6 6 . Penetration Max . | . . . . . . . Secondary Targets 11 | . 1 2 7 1 . . Max Gunslinging Chain 1 | . 1 1 1 1 . . Shots Hit Robots 328 | 18 52 26 133 25 74 . Core Hits 145 | 8 20 13 72 14 18 . Critical Kills 1 | . . . 1 . . . Critical Parts Destroyed 1 | . . . 1 . . . Critical Strikes 14 | 1 5 . 6 . 2 . Burn 9 | 1 4 . 4 . . . Destroy 2 | . . . 2 . . . Blast 1 | . . . . . 1 . Corrupt 1 | . 1 . . . . . Sever 1 | . . . . . 1 . Melee Attacks 54 | . . . . . 54 . Impact . | . . . . . . . Slashing 50 | . . . . . 50 . Piercing . | . . . . . . . Sneak Attacks 6 | . . . . . 6 . Combat Hostiles . | . . . . . . . Follow-up Attacks 12 | . . . . . 12 . Damage Inflicted 6873 | 228 717 445 2109 476 2898 . Guns 3938 | 228 680 445 2109 476 . . Cannons 1154 | . . . . . 1154 . Explosions 89 | . 37 . . . 52 . Melee 1692 | . . . . . 1692 . Ramming . | . . . . . . . Kinetic 2217 | . 164 445 1145 . 463 . Thermal 2826 | 228 467 . 964 476 691 . Explosive . | . . . . . . . Electromagnetic 138 | . 86 . . . 52 . Impact . | . . . . . . . Slashing 1692 | . . . . . 1692 . Piercing . | . . . . . . . Highest Corruption . | . . . . . . . Average Corruption . | . . . . . . . Corruption Purged . | . . . . . . . Corruption Blocked . | . . . . . . . Overload Shots . | . . . . . . . Overflow Damage 31 | . . . . . 31 . Projectiles 31 | . . . . . 31 . Explosions . | . . . . . . . Melee . | . . . . . . . Knockbacks 6 | . . . . . 6 . Impact . | . . . . . . . Kinetic 5 | . . . . . 5 . Secondary 1 | . . . . . 1 . Self-Inflicted Damage . | . . . . . . . Shots . | . . . . . . . Rammed . | . . . . . . . Targets Rammed . | . . . . . . . Kicked . | . . . . . . . Crushed . | . . . . . . . Highest Temperature 374 | 160 374 46 60 127 357 . Average Temperature 71 | 53 155 16 16 36 100 . Received Heat Transfer 652 | . 246 33 276 73 15 9 Effects 6 | . 6 . . . . . Energy Bleed 2 | . 2 . . . . . Interference 4 | . 4 . . . . . Siege Activations . | . . . . . . . Robots Corrupted . | . . . . . . . Combat Hostiles . | . . . . . . . Parts Fried . | . . . . . . . Impact Corruptions . | . . . . . . . Robots Melted 1 | . 1 . . . . . Combat Hostiles 1 | . 1 . . . . . Parts Melted 13 | 2 5 . . . 6 . Heat Transferred 6942 | 740 1591 . 2055 1036 1520 . Parts Sabotaged . | . . . . . . . Parts Stolen . | . . . . . . . Parts Stripped . | . . . . . . . Power Chain Reactions 1 | . 1 . . . . . Missiles Intercepted . | . . . . . . . Alert | -11 -10 -10 -9 -9 -9 -8 ------- Run | Jun Mat Min Mat Min Exi Min Peak Influence 437 | 35 210 282 437 43 . . Initial 31 | . 22 2 31 13 . . Average 127 | 19 69 136 181 17 . . Maximum Alert Level 2 | . 1 1 2 . . . Low Security (%) 71 | 100 97 64 56 100 . 100 Level 1 26 | . 2 35 41 . . . Level 2 1 | . . . 2 . . . Level 3 . | . . . . . . . Level 4 . | . . . . . . . Level 5 . | . . . . . . . High Security . | . . . . . . . Max Security . | . . . . . . . Squads Dispatched 4 | . 1 . 3 . . . Investigation 3 | . 1 . 2 . . . Extermination . | . . . . . . . Reinforcement 1 | . . . 1 . . . Assault . | . . . . . . . Garrison . | . . . . . . . Intercept . | . . . . . . . Searches Triggered . | . . . . . . . Construction Impeded . | . . . . . . . Haulers Reinforced . | . . . . . . . Active Scanning Responses . | . . . . . . . Cargo Convoy Interrupts . | . . . . . . . Stealth | -11 -10 -10 -9 -9 -9 -8 --------- Run | Jun Mat Min Mat Min Exi Min Distress Signals 4 | . 1 . 3 . . . Communications Jammed . | . . . . . . . Distress Signals . | . . . . . . . Times Spotted 158 | . 17 10 45 11 70 5 Peak Tracking Total 9 | . 4 3 7 2 9 4 Tactical Retreats 28 | . . . 2 3 23 . Traps | -11 -10 -10 -9 -9 -9 -8 ------- Run | Jun Mat Min Mat Min Exi Min Traps Triggered 3 | . 1 . 2 . . . Indirectly . | . . . . . . . Trap Hack Attempts 95 | . . . 64 31 . . Triggered 1 | . . . . 1 . . Disarmed 1 | . . . 1 . . . Reprogrammed 8 | . . . 7 1 . . Reused 7 | . . . 2 . 5 . Traps Extracted 5 | . . . 5 . . . Installed 7 | . . . . . 7 . Triggered 2 | . . . 2 . . . Most Traps Carried 7 | . . . 5 7 7 . Machines | -11 -10 -10 -9 -9 -9 -8 ---------- Run | Jun Mat Min Mat Min Exi Min Machines Disabled 5 | . 1 . 1 . 3 . Max in Single Turn 1 | . 1 . 1 . 1 . Machines Repaired . | . . . . . . . Machines Sabotaged . | . . . . . . . Overloaded Fab Kills . | . . . . . . . Hacking | -11 -10 -10 -9 -9 -9 -8 --------- Run | Jun Mat Min Mat Min Exi Min Machines Accessed 27 | . 9 . 15 1 2 . Terminals 18 | . 7 . 11 . . . Fabricators . | . . . . . . . Repair Stations 2 | . . . 2 . . . Recycling Units 3 | . 2 . 1 . . . Scanalyzers 1 | . . . 1 . . . Garrison Access . | . . . . . . . Total Hacks 82 | . 23 . 56 1 2 . Successful 57 | . 12 . 42 1 2 . Failed 23 | . 10 . 13 . . . Catastrophic 2 | . 1 . 1 . . . Database Lockouts 2 | . 1 . 1 . . . Manual 32 | . 17 . 14 . 1 . Terminals 51 | . 19 . 32 . . . Fabricators . | . . . . . . . Repair Stations 4 | . . . 4 . . . Recycling Units 7 | . 4 . 3 . . . Scanalyzers 17 | . . . 17 . . . Garrison Access . | . . . . . . . Terminal Hacks 19 | . 2 . 14 1 2 . Record 1 | . . . . . 1 . Robot Analysis 4 | . 1 . 3 . . . Prototype ID Bank 1 | . . . 1 . . . Open Door 1 | . . . . 1 . . Branch Access Points 1 | . . . 1 . . . Terminal Index 2 | . 1 . 1 . . . Alert Level 1 | . . . 1 . . . Unreport Threat 2 | . . . 2 . . . Locate Traps 2 | . . . 2 . . . Recall Investigation 1 | . . . 1 . . . Hauler Manifests 1 | . . . 1 . . . Zone Layout 1 | . . . 1 . . . EX-Prototype ID Bank 1 | . . . . . 1 . Fabricator Hacks . | . . . . . . . Repair Station Hacks 4 | . . . 4 . . . Scan Component 2 | . . . 2 . . . Repair 2 | . . . 2 . . . Recycling Unit Hacks 2 | . 1 . 1 . . . Retrieve Components 2 | . 1 . 1 . . . Scanalyzer 15 | . . . 15 . . . Insert Component 7 | . . . 7 . . . Analyze 8 | . . . 8 . . . Garrison Access Hacks . | . . . . . . . Unauthorized Hacks 17 | . 9 . 8 . . . Terminals 16 | . 8 . 8 . . . Track 3 | . 1 . 2 . . . Assimilate 3 | . 3 . . . . . Botnet 7 | . 3 . 4 . . . Disrupt 1 | . . . 1 . . . Operators 2 | . 1 . 1 . . . Fabricators . | . . . . . . . Repair Stations . | . . . . . . . Recycling Units 1 | . 1 . . . . . Reject 1 | . 1 . . . . . Scanalyzers . | . . . . . . . Garrison Access . | . . . . . . . Data Cores Recovered 1 | . . . 1 . . . Used 1 | . . . 1 . . . Hacking Detections 24 | . 9 . 15 . . . Full Trace Events 1 | . 1 . . . . . Feedback Events . | . . . . . . . Feedback Blocked . | . . . . . . . Robot Schematics Acquired . | . . . . . . . Robots Built . | . . . . . . . Authchips . | . . . . . . . Time . | . . . . . . . Total Robot Build Rating . | . . . . . . . Part Schematics Acquired 7 | . . . 7 . . . Parts Built . | . . . . . . . Authchips . | . . . . . . . Time . | . . . . . . . Total Part Build Rating . | . . . . . . . Parts Repaired 2 | . . . 2 . . . Time 162 | . . . 162 . . . Parts Recycled . | . . . . . . . Recycled Matter . | . . . . . . . Retrieved Matter . | . . . . . . . Retrieved Components 12 | . 2 . 10 . . . Parts Scanalyzed 7 | . . . 7 . . . Part Schematics Acquired 7 | . . . 7 . . . Parts Damaged 1 | . . . 1 . . . Bothacking | -11 -10 -10 -9 -9 -9 -8 ------------ Run | Jun Mat Min Mat Min Exi Min Used RIF Installer . | . . . . . . . Robots Hacked 4 | . . . . . 4 . Non-combat 3 | . . . . . 3 . Combat 1 | . . . . . 1 . Robot Hacks Applied 4 | . . . . . 4 . parse_system 4 | . . . . . 4 . Relay Couplers Released . | . . . . . . . Fabnet Peak Effective % . | . . . . . . . Robots Rewired . | . . . . . . . Allies Hacked . | . . . . . . . Hacks Repelled . | . . . . . . . Allies | -11 -10 -10 -9 -9 -9 -8 -------- Run | Jun Mat Min Mat Min Exi Min Total Allies 4 | . 1 . . 3 . . Largest Group 3 | . 1 1 . 3 3 . Highest-Rated Group 40 | . 10 10 . 40 40 . Highest-Rated Ally 16 | . 10 10 . 16 16 . Total Orders 8 | . . 4 . 2 2 . STAY 5 | . . 2 . 1 2 . FOLLOW 3 | . . 2 . 1 . . Ally Attacks 30 | . . . . 15 15 . Total Damage 153 | . . . . 78 75 . Kills 2 | . . . . 1 1 . Allies Corrupted . | . . . . . . . Allies Melted . | . . . . . . . Intel | -11 -10 -10 -9 -9 -9 -8 ------- Run | Jun Mat Min Mat Min Exi Min Robot Analysis Total 4 | . 1 . 3 . . . Derelict Logs Recovered 2 | . . 1 . 1 . . Drone Launches . | . . . . . . . Drone Recoveries . | . . . . . . . Exploration | -11 -10 -10 -9 -9 -9 -8 ------------- Run | Jun Mat Min Mat Min Exi Min Turns Passed 9163 | 223 1157 731 3666 996 2389 1 Spaces Moved 6128 | 118 943 644 2280 688 1454 1 Core 6 | 6 . . . . . . Treads . | . . . . . . . Legs 28 | 28 . . . . . . Wheels 6094 | 84 943 644 2280 688 1454 1 Hover . | . . . . . . . Flight . | . . . . . . . Fastest Speed 50 | 50 80 95 95 120 120 120 Average Speed 120 | 91 90 98 125 121 142 120 Slowest Speed 240 | 190 110 125 155 125 240 120 Overloaded Moves . | . . . . . . . Propulsion Burnouts . | . . . . . . . Robots Hopped . | . . . . . . . Cave-ins Triggered . | . . . . . . . Exploration Rate (%) 67 | 4 98 95 96 95 85 2 Regions Visited 6 Branch Regions 4 Pre-discovered Areas 2 | . . . . 1 1 . Known Exits Taken 1 | . . . 1 . . . Unknown Exits Taken 5 | 1 1 1 . 1 1 . Scrap Searched 3 | . . 2 . 1 . . Spaces Dug 2 | . 2 . . . . . Terrain Destroyed 8 | . 7 . . . 1 . Melee . | . . . . . . . Projectile 3 | . 2 . . . 1 . AOE 5 | . 5 . . . . . Terrain Rammed . | . . . . . . . Walls Destroyed . | . . . . . . . Machines Disabled . | . . . . . . . Actions | -11 -10 -10 -9 -9 -9 -8 --------- Run | Jun Mat Min Mat Min Exi Min Total 7448 | 201 1147 702 2912 790 1695 1 Wait 617 | 43 111 20 389 24 30 . Move 6122 | 117 942 643 2279 687 1453 1 Hop . | . . . . . . . Pick Up 121 | 10 18 4 32 6 51 . Fast Attach 18 | 8 3 2 5 . . . Attach 34 | 1 5 1 8 5 14 . Detach 3 | . . . . . 3 . Swap 42 | 2 9 2 20 1 8 . Drop 103 | 5 12 6 24 7 49 . Fire 244 | 15 47 24 91 29 38 . Melee 42 | . . . . . 42 . Ram . | . . . . . . . Kick . | . . . . . . . Crush . | . . . . . . . Escape Stasis . | . . . . . . . Rewire . | . . . . . . . Trap 102 | . . . 64 31 7 . Miscellaneous . | . . . . . . . Route ------- -11/Junkyard -10/Materials (discovered 4 exits: *Mat x3 / [*Min]) -10/Mines (discovered 2 exits: *Mat x2) -9/Materials (discovered 4 exits: [*Mat x3] / *Min) -9/Mines (discovered 4 exits: [*Mat x2] / *Exi / [*Zio]) -9/Exiles -8/Mines History --------- Turn | Location | Event 4 | -11/Junkyard | Discovered new exit (range 15) 224 | -11/Junkyard | Entered Materials 317 | -10/Materials | Build established: Mutant 353 | -10/Materials | Discovered new exit (range 13) 489 | -10/Materials | Discovered new exit (range 7) 650 | -10/Materials | Build established: Scavenger-Mutant 762 | -10/Materials | Discovered new exit (range 15) 1000 | -10/Materials | Central database locked down 1098 | -10/Materials | Discovered new exit (range 3) 1158 | -10/Materials | Build established: Mutant 1381 | -10/Materials | Entered Mines 1381 | -10/Mines | Accompanied by 1 ally 1506 | -10/Mines | Core integrity fell below 50% 1684 | -10/Mines | Learned Materials security intel 1924 | -10/Mines | Found a damaged Exp. Sensor Array with a note attached 1928 | -10/Mines | Found Prototype Device 2051 | -10/Mines | Discovered new exit (range 10) 2096 | -10/Mines | Discovered new exit (range 7) 2112 | -10/Mines | Entered Materials 2112 | -9/Materials | Evolved 2 slots: Utility x2 2233 | -9/Materials | Destroyed 7 combat bots 2988 | -9/Materials | Discovered new exit (range 3) 3151 | -9/Materials | Discovered new exit (range 14) 3464 | -9/Materials | Identified exit to Mines 3740 | -9/Materials | Build established: Scavenger-Mutant 3838 | -9/Materials | Discovered new exit (range 16) 3967 | -9/Materials | Core integrity fell below 50% 4247 | -9/Materials | Discovered new exit (range 12) 4351 | -9/Materials | Central database locked down 4392 | -9/Materials | Identified Exp. Sensor Array 4615 | -9/Materials | Repaired Broken Exp. Sensor Array 4993 | -9/Materials | Repaired Lgt. Armor Plating 5632 | -9/Materials | Build established: Mutant 5778 | -9/Materials | Entered Mines 5779 | -9/Mines | Assembled infested the area 5840 | -9/Mines | Discovered new exit (range 9) 6014 | -9/Mines | Assisted by bots powering up and referring to "LRC-V3" 6077 | -9/Mines | Discovered new exit (range 3) 6163 | -9/Mines | Met a Derelict who couldn't figure out how to use a Trap Extractor 6380 | -9/Mines | A Derelict revealed a hidden shortcut to a safe place 6390 | -9/Mines | Learned location of Storage (-7) 6419 | -9/Mines | Found a hidden stash of uninstalled traps 6711 | -9/Mines | Build established: Trapper-Mutant 6763 | -9/Mines | Deemed a non-threat by the Exiles lab entrance 6763 | -9/Mines | Discovered new exit (range 5) 6774 | -9/Mines | Entered Exiles 6774 | -9/Exiles | Accompanied by 3 allies 6804 | -9/Exiles | Met 8R-AWN 6824 | -9/Exiles | Met EX-HEX 6876 | -9/Exiles | Learned location of Zion (-7) 6930 | -9/Exiles | Discovered new exit (range 15) 6977 | -9/Exiles | Met EX-DEC 7024 | -9/Exiles | Met EX-BIN 7301 | -9/Exiles | Visited The Gauntlet 7481 | -9/Exiles | Build established: Mutant 7541 | -9/Exiles | Aligned with FarCom system 7542 | -9/Exiles | Given EX-Vault access code 7570 | -9/Exiles | Opened EX-Vault 7579 | -9/Exiles | Found Longsword +1 7586 | -9/Exiles | Found Gui. Plasma Cannon 7612 | -9/Exiles | Warned to stay clear of 0b10 Research branches 7673 | -9/Exiles | Warned about trapping Exiles lab 8007 | -9/Exiles | Attacked by the Exiles 8121 | -9/Exiles | Core integrity fell below 20% 8207 | -9/Exiles | Destroyed 8R-AWN 8212 | -9/Exiles | Found 8R-AWN's Boregun 8221 | -9/Exiles | Found Exp. Targeting Computer 8249 | -9/Exiles | Build established: Hauler-Mutant 8678 | -9/Exiles | Destroyed EX-HEX 8696 | -9/Exiles | Destroyed EX-BIN 8703 | -9/Exiles | Found System Purifier 8746 | -9/Exiles | Destroyed EX-DEC 8753 | -9/Exiles | Found Deploy-a-Sentry 9163 | -9/Exiles | Left Exiles lab with Deploy-a-Sentry 9163 | -9/Exiles | Entered Mines 9164 | -8/Mines | NK-0LA came to Exiles' defense 9164 | -8/Mines | Destroyed by NK-0LA with NK-0LA's Tesla Doomcannon Last Messages --------------- 09032_ A-02 Transporter knocked back. 09034_ Machine disabled. 09038_ A-02 Transporter knocked back. 09043_ A-02 Transporter destroyed. 09045_ Acquired 9 matter. 09046_ Acquired 6 matter. 09050_ Acquired 29 matter. 09052_ Acquired 7 matter. 09056_ Acquired 5 matter. 09057_ Acquired 14 matter. 09062_ Acquired 1 matter. 09099_ Acquired 7 matter. 09115_ Acquired Authchip [Device]. 09118_ Dropped Deuterium Engine. 09119_ Acquired Exp. Sensor Array. 09132_ Acquired 28 matter. A strange signal echoes through the mines. LOCATION=UNKNOWN GOAL=ESCAPE 09164_ NK-0LA: "I came as fast as I could... Wait, it was you!" Map ----- +----------------------------------------------------+ | | | | | | | | | | | | | | | | | | | | | | | | | | | | | | | | | | | ??????????????????????????????????????? | | ??????????????????????????????????????? | | ??????????????????????????????????????? | | ??????????????????????????????????????? | | ????????????????????????????####??????? | | ???????????????????????????# ##?????? | | ????????????????????##???## ##????? | | ????????????????????# ## #????? | | ????????????????????# @ g #????? | | ????????????????????## gbx #????? | | ?????????????????????# ### #????? | | ?????????????????????## ##???# #????? | | ??????????????????????###??????? #????? | | ??????????????????????????????????????? | | ??????????????????????????????????????? | | ??????????????????????????????????????? | | ??????????????????????????????????????? | | ??????????????????????????????????????? | | ??????????????????????????????????????? | | ??????????????????????????????????????? | | ??????????????????????????????????????? | | ??????????????????????????????????????? | | ??????????????????????????????????????? | | ??????????????????????????????????????? | | ??????????????????????????????????????? | | ??????????????????????????????????????? | | ??????????????????????????????????????? | | ??????????????????????????????????????? | | ??????????????????????????????????????? | | ??????????????????????????????????????? | | ??????????????????????????????????????? | | ??????????????????????????????????????? | | ??????????????????????????????????????? | +----------------------------------------------------+ Best States ------------- Heat Dissipation 42 Energy Generation 14 Energy Capacity 275 Matter Stores 300 Matter Capacity 300 Sight Range 16 Terrain Scan Range 16 Terrain Scan Density 10 Armor Coverage 150 Weapon Cycling 25 Evasion (%) 45 Targeting Accuracy 5 Target Analysis 6 Recoil Reduction 1 Offensive Hacking 10 Authchip Count 1 Trap Extractor Capacity 4 Item Schematics ----------------- Exp. Sensor Array | -9/Materials | Scanalyzed Adv. Beam Cannon | -9/Materials | Scanalyzed Arm. Wheel | -9/Materials | Scanalyzed Mni. Grenade Launcher | -9/Materials | Scanalyzed Lrg. Matter Pod | -9/Materials | Scanalyzed Katana | -9/Materials | Scanalyzed Datajack | -9/Materials | Scanalyzed Robot Schematics ------------------ None Fabricated ------------ Nothing Alien Tech Used ----------------- None Achievements -------------- None Challenges ------------ None Game ------ Seed BiocellDecoyPlating Manual? 0 Play Time 01:30:29 Cumulative 564.6 hours Start 2023.03.12 @ 03:09:05 End 2023.03.12 @ 05:02:29 Sessions 1 Manual Loads 0 Difficulty Rogue Special Mode None Game No. 401 Rogue 401 Adventurer 0 Explorer 0 Win Type - Total 1 Types 1/0/0/0/0/0/0/0/0 Lore% 70 Gallery% 78 Achievement% 58 Wizard Run 0 Options --------- ASCII 0 Keyboard 0 Movement Mouse Keybinds 0 Fullscreen 1 Font 16/SmallcapsGlow Map View 75x55 Tactical HUD 1 Map Filters NONE Filters NONE Steam 1 RUN: e2709b61-cfbb-4777-ace7-cd8e5b72a7e8